fUSD/lending_fUSD_20240414
["ID","MTS","AMOUNT","RATE_DAILY","PERIOD"]
[322576374,1713081040764,-298.037159,0.000323,3]
[322576376,1713081040773,-357.62,0.00032304,2]
[322576378,1713081040784,-153.51371593,0.00032323,4]
[322576380,1713081040793,-157.041416,0.00032498,33]
[322576382,1713081040807,-213.0,0.00032503,2]
[322576384,1713081040816,-7280.22,0.00032562,5]
[322576386,1713081040828,-611.44133086,0.000326,20]
[322576388,1713081040837,-1634.25,0.00032603,2]
[322576390,1713081040848,-9997.04,0.00032603,2]
[322576392,1713081040858,-456.24720881,0.00032754,2]
[322576394,1713081040868,-200.0,0.00032773,7]
[322576396,1713081040880,-157.041416,0.00032798,35]
[322576398,1713081040891,-796.4891,0.000328,2]
[322576400,1713081040901,-150.0,0.000328,3]
[322576401,1713081040911,-152.27,0.00032877,2]
[322576402,1713081040922,-1000.0,0.00032877,15]
[322576403,1713081040936,-150.0,0.00032877,30]
[322576404,1713081040955,-150.0,0.00032877,30]
[322576405,1713081040975,-150.0,0.00032877,30]
[322576406,1713081040994,-150.0,0.00032877,30]
[322576407,1713081041007,-3139.77622742,0.00032899,4]
[322576408,1713081041020,-7398.62,0.000329,5]
[322576409,1713081041030,-100000.0,0.00033,8]
[322576410,1713081041040,-800.0,0.00033,3]
[322576411,1713081041051,-534.0,0.0003315,2]
[322576412,1713081041061,-835.0,0.0003315,2]
[322576413,1713081041070,-157.041416,0.00033198,40]
[322576414,1713081041084,-320.41252807,0.00033233,2]
[322576415,1713081041094,-289.95,0.00033289,2]
[322576416,1713081041103,-355.0,0.00033289,2]
[322576417,1713081041114,-5719.0,0.00033289,2]
[322576418,1713081041125,-7653.098,0.00033289,2]
[322576419,1713081041135,-4803.0,0.00033289,2]
[322576420,1713081041144,-150.0,0.000333,3]
[322576421,1713081041154,-456.24720881,0.00033316,2]
[322576422,1713081041163,-157.041416,0.00033498,45]
[322576423,1713081041172,-150.0,0.00033793,30]
[322576424,1713081041182,-157.041416,0.00033798,46]
[322576425,1713081041192,-150.0,0.00033799,30]
[322576426,1713081041201,-150.0,0.000338,3]
[322576427,1713081041211,-152.42,0.00033844,2]
[322576428,1713081041220,-152.27,0.00033844,2]
[322576429,1713081041231,-456.24720881,0.00033877,2]
[322576430,1713081041240,-1000.0,0.0003389,2]
[322576431,1713081041250,-100000.0,0.00034,9]
[322576432,1713081041259,-453.598544,0.00034,120]
[322576433,1713081041268,-157.041416,0.00034198,48]
[322576434,1713081041278,-2500.0,0.000342,2]
[322576435,1713081041287,-487.27,0.00034238,2]
[322576436,1713081041297,-1000.0,0.00034247,2]
[322576437,1713081041307,-150.0,0.000343,4]
[322576438,1713081041317,-154.21,0.0003435,2]
[322576439,1713081041327,-111361.28510563,0.0003436,7]
[322576440,1713081041337,-456.24720881,0.00034439,2]
[322576441,1713081041347,-157.041416,0.00034498,48]
[322576442,1713081041356,-164.28918671,0.00034505,2]
[322576443,1713081041366,-534.0,0.0003452,2]
[322576444,1713081041376,-835.0,0.0003452,2]
[322576445,1713081041386,-150.0,0.00034548,10]
[322576446,1713081041396,-277.23955994,0.00034662,7]
[322576447,1713081041405,-185.0,0.000347,22]
[322576448,1713081041415,-200.0,0.00034776,10]
[322576449,1713081041424,-1000.0,0.00034776,15]
[322576450,1713081041434,-157.041416,0.00034798,48]
[322576451,1713081041444,-3814.28822105,0.000348,14]
[322576452,1713081041453,-150.0,0.000348,4]
[322576453,1713081041463,-152.27,0.00034811,2]
[322576454,1713081041472,-173.15014276,0.000349,2]
[322576455,1713081041481,-1069.2225733,0.00034949,5]
[322576456,1713081041490,-1052.14247418,0.00034949,5]
[322576457,1713081041499,-1044.01157993,0.00034959,5]
[322576458,1713081041509,-1009.6411,0.0003498,14]
[322576459,1713081041518,-100000.0,0.00035,15]
[322576460,1713081041528,-5000.0,0.00035,4]
[322576461,1713081041537,-296.6,0.00035,2]
[322576462,1713081041546,-3302.15021382,0.00035,4]
[322576463,1713081041556,-9663.23524333,0.00035,4]
[322576464,1713081041565,-155.18100376,0.00035,4]
[322576465,1713081041574,-1000.0,0.00035,14]
[322576466,1713081041588,-850.0,0.00035,3]
[322576467,1713081041598,-500.0,0.00035,7]
[322576468,1713081041608,-610.96,0.00035,2]
[322576469,1713081041618,-489.69,0.00035,2]
[322576470,1713081041628,-456.24720881,0.00035,2]
[322576471,1713081041638,-157.041416,0.00035198,50]
[322576472,1713081041652,-2282.63,0.00035288,15]
[322576473,1713081041663,-150.0,0.000353,4]
[322576474,1713081041674,-280.65544228,0.00035484,2]
[322576475,1713081041685,-157.041416,0.00035498,50]
[322576476,1713081041697,-456.24720881,0.00035562,2]
[322576477,1713081041709,-2105.97739728,0.000356,30]
[322576478,1713081041721,-154.21,0.00035648,2]
[322576479,1713081041731,-154.21,0.00035648,2]
[322576480,1713081041743,-614424.58689396,0.00035658,4]
[322576481,1713081041754,-154.21,0.00035662,2]
[322576482,1713081041764,-154.21,0.00035662,2]
[322576483,1713081041775,-13222.75426064,0.00035662,4]
[322576484,1713081041786,-595.30948057,0.00035662,2]
[322576485,1713081041799,-155.0,0.00035662,2]
[322576486,1713081041811,-500.0,0.00035662,2]
[322576487,1713081041821,-500.0,0.00035662,2]
[322576488,1713081041833,-114526.91380461,0.00035672,2]
[322576489,1713081041843,-10248.77804429,0.00035672,3]
[322576490,1713081041853,-595.62480264,0.00035672,6]
[322576491,1713081041864,-12130.04464134,0.00035672,2]
[322576492,1713081041874,-10405.01780987,0.00035672,2]
[322576493,1713081041884,-509.22828771,0.00035672,7]
[322576494,1713081041893,-133566.5854757,0.00035672,2]
[322576495,1713081041903,-397.72730698,0.00035672,7]
[322576496,1713081041913,-29264.96285123,0.00035672,15]
[322576497,1713081041924,-22173.01039748,0.00035672,2]
[322576498,1713081041933,-14714.29341633,0.00035672,2]
[322576499,1713081041948,-193.07719076,0.00035672,15]
[322576500,1713081041958,-60362.43358927,0.00035672,2]
[322576501,1713081041969,-571.52106245,0.00035672,5]
[322576502,1713081041980,-12486.69717934,0.00035672,2]
[322576503,1713081041991,-14380.55778657,0.00035672,3]
[322576504,1713081042002,-4000.0,0.00035672,3]
[322576505,1713081042012,-16297.60571121,0.00035672,2]
[322576506,1713081042022,-155.31118341,0.00035672,2]
[322576507,1713081042033,-10422.11552649,0.00035672,2]
[322576508,1713081042044,-164962.32324302,0.00035672,2]
[322576509,1713081042054,-14551.82430576,0.00035672,2]
[322576510,1713081042064,-3546.84618585,0.00035672,15]
[322576511,1713081042074,-1239.22484443,0.00035672,4]
[322576512,1713081042086,-946.83622109,0.00035672,4]
[322576513,1713081042096,-234.60976976,0.00035672,5]
[322576514,1713081042106,-9859.82695937,0.00035672,15]
[322576515,1713081042116,-6721.36731504,0.00035672,2]
[322576516,1713081042126,-3266.88528481,0.00035672,7]
[322576517,1713081042136,-527.63848763,0.00035672,5]
[322576518,1713081042146,-263.03513447,0.00035672,10]
[322576519,1713081042157,-275.0,0.00035672,14]
[322576520,1713081042168,-9056.11478941,0.00035672,2]
[322576521,1713081042178,-18985.20241253,0.00035672,3]
[322576522,1713081042189,-625.65458978,0.00035672,14]
[322576523,1713081042200,-6526.56897254,0.00035672,4]
[322576524,1713081042210,-3842.70634948,0.00035672,3]
[322576525,1713081042221,-208.26351466,0.00035672,7]
[322576526,1713081042234,-29644.98974132,0.00035672,4]
[322576527,1713081042245,-205.24290855,0.00035672,5]
[322576528,1713081042256,-218.83401044,0.00035672,15]
[322576529,1713081042266,-23094.90947883,0.00035672,2]
[322576530,1713081042277,-5000.70834694,0.00035672,2]
[322576531,1713081042289,-1366.93426543,0.00035672,20]
[322576532,1713081042301,-1834.33674659,0.00035672,2]
[322576533,1713081042312,-998.6,0.00035672,13]
[322576534,1713081042323,-1283.88,0.00035672,13]
[322576535,1713081042338,-2720.72148304,0.00035672,7]
[322576536,1713081042348,-183.32688044,0.00035672,7]
[322576537,1713081042358,-211.15041514,0.00035672,7]
[322576538,1713081042368,-3357.71883332,0.00035672,2]
[322576539,1713081042378,-202.7934073,0.00035672,7]
[322576540,1713081042388,-1760.75450467,0.00035672,2]
[322576541,1713081042398,-2925.47049298,0.00035672,2]
[322576542,1713081042409,-150.0,0.00035672,2]
[322576543,1713081042419,-150.0,0.00035672,2]
[322576544,1713081042428,-200.0,0.00035672,2]
[322576545,1713081042438,-155.63354506,0.00035672,17]
[322576546,1713081042448,-3201.9551025,0.0003571,2]
[322576547,1713081042460,-152.27,0.00035778,2]
[322576548,1713081042469,-157.041416,0.00035798,50]
[322576549,1713081042480,-150.0,0.000358,4]
[322576550,1713081042493,-610.96,0.000358,2]
[322576551,1713081042503,-489.69,0.000358,2]
[322576552,1713081042514,-534.0,0.0003589,7]
[322576553,1713081042524,-835.0,0.0003589,7]
[322576554,1713081042535,-3201.9551025,0.00035899,2]
[322576555,1713081042546,-153.51371593,0.00035919,8]
[322576556,1713081042558,-181.87806047,0.00035948,3]
[322576557,1713081042570,-100000.0,0.00036,16]
[322576558,1713081042584,-2037.0,0.00036,7]
[322576559,1713081042596,-1200.0,0.00036,37]
[322576560,1713081042606,-1000.0,0.00036021,15]
[322576561,1713081042616,-200.0,0.00036021,10]
[322576562,1713081042626,-1000.0,0.0003613,2]
[322576563,1713081042636,-1000.0,0.0003613,2]
[322576564,1713081042646,-1000.0,0.0003613,2]
[322576565,1713081042655,-1000.0,0.0003613,2]
[322576566,1713081042666,-1000.0,0.0003613,2]
[322576567,1713081042676,-1000.0,0.0003613,2]
[322576568,1713081042686,-1000.0,0.0003613,2]
[322576569,1713081042696,-1000.0,0.0003613,2]
[322576570,1713081042706,-1000.0,0.0003613,2]
[322576571,1713081042716,-559.6996,0.0003613,2]
[322576572,1713081042727,-500.0,0.0003613,2]
[322576573,1713081042737,-602.6476,0.0003613,2]
[322576574,1713081042746,-157.041416,0.00036198,51]
[322576575,1713081042756,-1294.4344,0.00036212,2]
[322576576,1713081042768,-150.0,0.000363,4]
[322576577,1713081042781,-150.01,0.00036311,2]
[322576578,1713081042792,-5835.31046315,0.00036311,2]
[322576579,1713081042803,-400.0,0.00036312,3]
[322576580,1713081042813,-1096.53088,0.00036312,2]
[322576581,1713081042841,-150.0,0.0003638,4]
[322576582,1713081042852,-200.0,0.00036383,7]
[322576583,1713081042864,-154.21,0.0003639,2]
[322576584,1713081042876,-200.0,0.00036399,7]
[322576585,1713081042888,-200.0,0.00036399,7]
[322576586,1713081042898,-2100.0,0.00036399,7]
[322576587,1713081042909,-151.238,0.00036399,7]
[322576589,1713081042920,-150.0,0.00036399,7]
[322576590,1713081042930,-666312.0,0.000364,2]
[322576592,1713081042940,-1003.1,0.000364,2]
[322576593,1713081042952,-600.0,0.000364,120]
[322576594,1713081042963,-154.21,0.00036401,2]
[322576595,1713081042974,-151.49,0.00036408,2]
[322576596,1713081042986,-175.92,0.00036408,2]
[322576598,1713081042997,-150.0,0.00036408,2]
[322576600,1713081043008,-150.0,0.00036408,2]
[322576601,1713081043020,-150.0,0.00036408,2]
[322576602,1713081043031,-19874.0,0.00036411,4]
[322576603,1713081043041,-3624.0,0.00036411,4]
[322576604,1713081043052,-7311.0,0.00036411,4]
[322576605,1713081043062,-200.0,0.0003644,7]
[322576607,1713081043073,-3201.95510252,0.00036441,2]
[322576608,1713081043085,-200.0,0.00036485,7]
[322576609,1713081043094,-200.0,0.00036485,7]
[322576610,1713081043105,-200.0,0.00036485,7]
[322576612,1713081043115,-200.0,0.00036485,7]
[322576615,1713081043126,-150.0,0.00036485,2]
[322576618,1713081043138,-150.0,0.00036485,2]
[322576621,1713081043149,-150.0,0.00036485,2]
[322576623,1713081043160,-150.0,0.00036485,2]
[322576626,1713081043171,-157.041416,0.00036498,51]
[322576628,1713081043181,-610.96,0.000365,2]
[322576630,1713081043191,-489.69,0.000365,2]
[322576632,1713081043201,-487.27,0.00036502,2]
[322576634,1713081043211,-151.95,0.00036722,2]
[322576636,1713081043220,-150.0,0.00036722,2]
[322576638,1713081043230,-150.0,0.00036722,2]
[322576640,1713081043240,-150.0,0.00036722,2]
[322576642,1713081043249,-150.0,0.00036722,2]
[322576644,1713081043259,-152.27,0.00036745,2]
[322576646,1713081043268,-157.041416,0.00036798,51]
[322576648,1713081043278,-153.32,0.000368,3]
[322576650,1713081043287,-153.32,0.000368,3]
[322576652,1713081043297,-153.32,0.000368,3]
[322576653,1713081043307,-153.32,0.000368,3]
[322576654,1713081043317,-6980.2,0.000368,3]
[322576655,1713081043328,-6980.2,0.000368,3]
[322576656,1713081043338,-6980.2,0.000368,3]
[322576657,1713081043350,-6980.2,0.000368,3]
[322576658,1713081043359,-6980.2,0.000368,3]
[322576659,1713081043368,-6980.2,0.000368,3]
[322576660,1713081043377,-6980.2,0.000368,3]
[322576661,1713081043386,-6980.2,0.000368,3]
[322576662,1713081043395,-6980.2,0.000368,3]
[322576663,1713081043405,-6980.2,0.000368,3]
[322576664,1713081043414,-6980.2,0.000368,3]
[322576665,1713081043423,-6980.2,0.000368,3]
[322576666,1713081043432,-6980.2,0.000368,3]
[322576667,1713081043441,-6980.2,0.000368,3]
[322576668,1713081043451,-6980.2,0.000368,3]
[322576669,1713081043460,-6980.2,0.000368,3]
[322576670,1713081043470,-6980.2,0.000368,3]
[322576671,1713081043479,-6980.2,0.000368,3]
[322576672,1713081043488,-6980.2,0.000368,3]
[322576673,1713081043498,-6980.2,0.000368,3]
[322576674,1713081043508,-150.0,0.00036805,2]
[322576675,1713081043517,-150.0,0.00036805,2]
[322576676,1713081043531,-150.0,0.00036805,2]
[322576677,1713081043541,-150.0,0.00036805,2]
[322576678,1713081043550,-1000.0,0.00036971,2]
[322576679,1713081043560,-154.21,0.0003699,2]
[322576680,1713081043570,-154.21,0.0003699,2]
[322576681,1713081043582,-100000.0,0.00037,17]
[322576682,1713081043591,-10404.4501441,0.00037,6]
[322576683,1713081043600,-245860.90566335,0.00037,4]
[322576686,1713081043680,-4756.280333,0.00037,4]
[322576689,1713081043692,-609673.63780012,0.00037,4]
[322576691,1713081043702,-2000.0,0.00037,2]
[322576693,1713081043711,-1200.0,0.00037,38]
[322576725,1713081043721,-900.0,0.00037,3]
[322576726,1713081044012,-1096.53089,0.0003702,2]
[322576727,1713081044021,-151.0,0.00037065,4]
[322576728,1713081044030,-150.0,0.00037129,120]
[322576729,1713081044039,-157.041416,0.00037198,52]
[322576730,1713081044048,-610.96,0.000372,2]
[322576731,1713081044058,-489.69,0.000372,2]
[322576732,1713081044067,-835.0,0.0003726,7]
[322576733,1713081044077,-157.041416,0.00037498,52]
[322576734,1713081044086,-2000.0,0.000375,7]
[322576735,1713081044095,-40000.0,0.00037572,11]
[322576736,1713081044104,-1003.1,0.000376,2]
[322576738,1713081044113,-492.0,0.00037705,3]
[322576740,1713081044124,-164.28918671,0.00037709,2]
[322576742,1713081044133,-152.27,0.00037712,2]
[322576744,1713081044142,-203.0,0.0003772,2]
[322576746,1713081044151,-157.041416,0.00037798,52]
[322576748,1713081044161,-151.0,0.00037821,2]
[322576751,1713081044170,-154.21,0.0003799,2]
[322576752,1713081044179,-100000.0,0.00038,18]
[322576755,1713081044189,-2000.0,0.00038,5]
[322576757,1713081044200,-1200.0,0.00038,39]
[322576759,1713081044209,-2282.63,0.00038027,15]
[322576761,1713081044219,-610.96,0.000381,2]
[322576763,1713081044229,-489.69,0.000381,2]
[322576764,1713081044238,-157.041416,0.00038198,53]
[322576767,1713081044247,-1096.53088,0.0003827,2]
[322576769,1713081044260,-3750.0,0.000384,2]
[322576771,1713081044270,-157.041416,0.00038498,53]
[322576773,1713081044279,-835.0,0.0003863,7]
[322576775,1713081044288,-152.27,0.00038678,2]
[322576777,1713081044298,-1196.04554684,0.00038765,2]
[322576779,1713081044307,-487.27,0.00038766,2]
[322576781,1713081044316,-157.041416,0.00038798,53]
[322576783,1713081044327,-1003.1,0.000388,2]
[322576785,1713081044336,-4103.82514261,0.000389,15]
[322576787,1713081044345,-252.94,0.00038933,2]
[322576789,1713081044355,-97676.7830668,0.0003897,2]
[322576791,1713081044364,-100000.0,0.00039,19]
[322576793,1713081044374,-632.48434617,0.00039,4]
[322576795,1713081044383,-1030.58640497,0.00039,2]
[322576797,1713081044392,-1159.4213875,0.00039,2]
[322576799,1713081044402,-1200.0,0.00039,40]
[322576801,1713081044411,-950.0,0.00039,3]
[322576803,1713081044421,-610.96,0.00039,7]
[322576805,1713081044430,-489.69,0.00039,7]
[322576807,1713081044439,-605.0,0.0003915,5]
[322576809,1713081044449,-157.041416,0.00039198,55]
[322576811,1713081044458,-203.0,0.0003926,2]
[322576813,1713081044468,-157.041416,0.00039498,55]
[322576815,1713081044477,-153.51371593,0.00039516,13]
[322576818,1713081044487,-1096.53089,0.0003952,2]
[322576820,1713081044496,-316324.01323033,0.000396,2]
[322576822,1713081044509,-7462.98676967,0.000396,2]
[322576824,1713081044518,-152.27,0.00039645,2]
[322576826,1713081044528,-157.041416,0.00039798,55]
[322576828,1713081044538,-908.17,0.00039855,2]
[322576830,1713081044548,-557.17,0.00039855,2]
[322576832,1713081044558,-757.0,0.000399,2]
[322576834,1713081044567,-610.96,0.000399,7]
[322576836,1713081044578,-489.69,0.000399,7]
[322576838,1713081044587,-490.91585402,0.0003999,2]
[322576840,1713081044596,-263.44133956,0.00039999,31]
[322576842,1713081044606,-9740.42296575,0.0004,40]
[322577051,1713081046605,-320.41252807,0.00036011,2]
[322577053,1713081046615,-152.84581396,0.0004,40]
[322577055,1713081046630,-2742.04305311,0.0004,40]
[322577268,1713081049135,-0.77200715,0.000205,2]
[322577328,1713081049697,-308.64151814,0.000205,2]
[322577421,1713081051629,-3354.38,0.000205,2]
[322577422,1713081052219,-1781.73357471,0.000205,2]
[322577423,1713081052228,-320.41252807,0.00038789,2]
[322577424,1713081052239,-87364.68816718,0.0004,40]
[322577425,1713081052250,-548.21015261,0.0004,4]
[322577426,1713081052260,-27126.70759591,0.0004,4]
[322577427,1713081052270,-193.01379895,0.0004,2]
[322577428,1713081052279,-17131.88855387,0.0004,4]
[322577429,1713081052290,-601.5889789,0.0004,5]
[322577430,1713081052299,-247099.6293212,0.0004,2]
[322577431,1713081052309,-2001.45113502,0.0004,2]
[322577432,1713081052319,-2458.63329163,0.0004,2]
[322577433,1713081052328,-369.70573159,0.0004,2]
[322577434,1713081052341,-500.0,0.0004,2]
[322577435,1713081052351,-1085.45816823,0.0004,2]
[322577436,1713081052360,-231.65632803,0.0004,120]
[322577437,1713081052369,-959.45180685,0.0004,30]
[322577438,1713081052379,-788.54,0.0004,30]
[322577439,1713081052388,-835.0,0.0004,7]
[322577440,1713081052398,-150.89,0.0004,15]
[322577441,1713081052407,-150.0,0.0004,26]
[322577442,1713081052417,-1003.1,0.0004,2]
[322577443,1713081052428,-685.39764,0.000401,20]
[322577444,1713081052438,-153.32,0.000401,4]
[322577445,1713081052448,-153.32,0.000401,4]
[322577446,1713081052458,-153.32,0.000401,4]
[322577447,1713081052468,-153.32,0.000401,4]
[322577448,1713081052477,-153.32,0.000401,4]
[322577449,1713081052487,-153.32,0.000401,4]
[322577450,1713081052497,-153.32,0.000401,4]
[322577451,1713081052507,-153.32,0.000401,4]
[322577452,1713081052517,-6980.2,0.000401,4]
[322577453,1713081052527,-6980.2,0.000401,4]
[322577454,1713081052537,-6980.2,0.000401,4]
[322577455,1713081052548,-6980.2,0.000401,4]
[322577456,1713081052559,-6980.2,0.000401,4]
[322577457,1713081052569,-6980.2,0.000401,4]
[322577458,1713081052579,-6980.2,0.000401,4]
[322577459,1713081052591,-6980.2,0.000401,4]
[322577460,1713081052602,-6980.2,0.000401,4]
[322577461,1713081052612,-6980.2,0.000401,4]
[322577462,1713081052622,-6980.2,0.000401,4]
[322577463,1713081052633,-6980.2,0.000401,4]
[322577464,1713081052643,-6980.2,0.000401,4]
[322577465,1713081052653,-6980.2,0.000401,4]
[322577466,1713081052665,-6980.2,0.000401,4]
[322577467,1713081052676,-6980.2,0.000401,4]
[322577468,1713081052686,-6980.2,0.000401,4]
[322577469,1713081052696,-6980.2,0.000401,4]
[322577470,1713081052705,-6980.2,0.000401,4]
[322577471,1713081052716,-157.041513,0.00040198,57]
[322577472,1713081052725,-155.16,0.0004029,2]
[322577473,1713081052734,-152.42,0.0004029,2]
[322577474,1713081052744,-17651.0,0.000403,3]
[322577475,1713081052753,-521.03,0.00040403,2]
[322577476,1713081052764,-265.86,0.00040403,2]
[322577477,1713081052775,-166.66,0.00040403,2]
[322577478,1713081052787,-794.43,0.00040403,2]
[322577479,1713081052796,-150.0,0.00040403,2]
[322577480,1713081052806,-150.0,0.00040403,2]
[322577481,1713081052816,-150.0,0.00040403,2]
[322577482,1713081052827,-150.0,0.00040403,2]
[322577483,1713081052841,-150.0,0.00040403,2]
[322577484,1713081052853,-157.041507,0.00040498,61]
[322577485,1713081052862,-152.27,0.00040612,2]
[322577486,1713081052874,-744.0,0.00040652,5]
[322577487,1713081052885,-5026.73010165,0.0004067,6]
[322577488,1713081052895,-2282.63,0.00040767,15]
[322577489,1713081052904,-1096.53088,0.0004077,6]
[322577490,1713081052914,-610.96,0.000408,7]
[322577491,1713081052924,-489.69,0.000408,7]
[322577492,1713081053129,-203.0,0.0004081,2]
[322577493,1713081053151,-17651.0,0.000409,5]
[322577494,1713081053162,-164.28918671,0.00040913,2]
[322577495,1713081053171,-225627.94559806,0.00040997,2]
[322577496,1713081053181,-100000.0,0.00041,41]
[322577497,1713081053191,-1200.0,0.00041,42]
[322577498,1713081053201,-1000.0,0.00041,3]
[322577499,1713081053211,-487.27,0.0004103,2]
[322577500,1713081053220,-318.8130496,0.00041051,30]
[322577501,1713081053230,-256.13487886,0.00041057,30]
[322577502,1713081053240,-153.57672703,0.00041071,30]
[322577503,1713081053250,-242.71617137,0.00041077,30]
[322577504,1713081053260,-1000.0,0.00041095,2]
[322577505,1713081053274,-157.0,0.00041096,2]
[322577506,1713081053284,-586.68562945,0.000411,2]
[322577507,1713081053294,-332.93477396,0.000411,30]
[322577508,1713081053304,-3348.0,0.000411,2]
[322577509,1713081053314,-155.72346712,0.00041121,30]
[322577510,1713081053323,-165.8815706,0.00041143,30]
[322577511,1713081053336,-156.46926548,0.00041197,30]
[322577512,1713081053346,-157.041513,0.00041198,60]
[322577513,1713081053355,-1003.1,0.000412,2]
[322577514,1713081053364,-318.8130496,0.00041233,30]
[322577515,1713081053374,-156.3106271,0.00041336,30]
[322577516,1713081053383,-835.0,0.0004137,7]
[322577517,1713081053393,-242.71617137,0.00041425,30]
[322577518,1713081053402,-156.3106271,0.0004144,30]
[322577519,1713081053412,-157.041416,0.00041498,63]
[322577520,1713081053422,-332.93477396,0.00041515,30]
[322577521,1713081053433,-156.46926548,0.00041548,30]
[322577522,1713081053443,-289.82932389,0.0004157,30]
[322577523,1713081053453,-152.27,0.00041579,2]
[322577524,1713081053464,-171.20687448,0.00041608,30]
[322577525,1713081053473,-318.8130496,0.0004165,30]
[322577526,1713081053483,-154.99801969,0.00041663,30]
[322577527,1713081053493,-171.20687448,0.00041692,30]
[322577528,1713081053503,-318.8130496,0.00041754,30]
[322577529,1713081053512,-156.83100348,0.00041797,30]
[322577530,1713081053523,-242.71617137,0.00041834,30]
[322577531,1713081053533,-156.3106271,0.00041889,30]
[322577532,1713081053543,-5000.0,0.00041909,8]
[322577533,1713081053553,-5000.0,0.00041909,7]
[322577534,1713081053563,-5000.0,0.00041909,9]
[322577535,1713081053573,-5000.0,0.00041909,8]
[322577536,1713081053583,-5000.0,0.00041909,7]
[322577537,1713081053594,-156.46926548,0.00041913,30]
[322577538,1713081053603,-154.38291623,0.00041958,30]
[322577539,1713081053613,-171.20687448,0.00041982,30]
[322577540,1713081053623,-100000.0,0.00042,42]
[322577541,1713081053632,-8778.12573663,0.00042,2]
[322577542,1713081053641,-2951.32,0.00042,2]
[322577543,1713081053651,-7019.05947052,0.00042,2]
[322577544,1713081053661,-1000.0,0.00042,2]
[322577545,1713081053671,-500.0,0.00042,2]
[322577546,1713081053680,-5300.0,0.00042,12]
[322577547,1713081053690,-5300.0,0.00042,13]
[322577548,1713081053700,-1775.08771321,0.00042,30]
[322577549,1713081053710,-1200.0,0.00042,43]
[322577550,1713081053719,-171.20687448,0.00042007,30]
[322577551,1713081053729,-1304.92723137,0.0004201,2]
[322577552,1713081053738,-1096.53089,0.0004202,12]
[322577553,1713081053747,-151.0,0.00042023,2]
[322577554,1713081053756,-250.49088,0.00042023,2]
[322577555,1713081053765,-171.20687448,0.00042044,30]
[322577556,1713081053774,-256.13487886,0.00042066,30]
[322577557,1713081053784,-154.99801969,0.00042077,30]
[322577558,1713081053793,-332.93477396,0.00042085,30]
[322577559,1713081053806,-159.98891826,0.00042146,30]
[322577560,1713081053817,-153.49,0.00042158,2]
[322577561,1713081053827,-161.17,0.00042158,2]
[322577562,1713081053839,-156.46926548,0.00042162,30]
[322577563,1713081053849,-157.041416,0.00042198,65]
[322577564,1713081053859,-915.0,0.00042211,5]
[322577565,1713081053869,-289.82932389,0.00042211,30]
[322577566,1713081053880,-154.38291623,0.00042252,30]
[322577567,1713081053890,-332.93477396,0.00042282,30]
[322577568,1713081053899,-256.13487886,0.00042299,30]
[322577569,1713081053909,-156.46926548,0.000423,30]
[322577570,1713081053920,-203.0,0.0004235,2]
[322577571,1713081053930,-153.57672703,0.00042357,30]
[322577572,1713081053941,-154.38291623,0.00042371,30]
[322577573,1713081053951,-1003.1,0.000424,2]
[322577574,1713081053961,-1000.0,0.00042465,2]
[322577575,1713081053971,-289.82932389,0.00042471,30]
[322577576,1713081053981,-157.041507,0.00042498,67]
[322577577,1713081053991,-171.20687448,0.00042499,30]
[322577578,1713081054001,-1000.0,0.000425,2]